fUSD/lending_fUSD_20250112
["ID","MTS","AMOUNT","RATE_DAILY","PERIOD"]
[348640709,1736696467104,-2251.29,0.000123,31]
[348640710,1736696467129,-2251.29,0.000123,31]
[348640711,1736696467153,-2251.29,0.000123,31]
[348640712,1736696467176,-2251.29,0.000123,31]
[348640713,1736696467200,-2251.29,0.000123,31]
[348640714,1736696467224,-2251.29,0.000123,31]
[348640715,1736696467248,-1738.39,0.000123,31]
[348640716,1736696479103,1002.33,8.938e-05,2]
[348640717,1736696566779,428.11,8.941e-05,2]
[348640718,1736696603500,216.28,8.907e-05,2]
[348640719,1736696603523,10000.0,8.907e-05,2]
[348640720,1736696603546,10000.0,8.907e-05,2]
[348640721,1736696603569,3683.72,8.907e-05,2]
[348640722,1736696646438,503.98,8.898e-05,2]
[348640723,1736696775525,167.38,8.903e-05,2]
[348640724,1736696805408,989.33,8.904e-05,2]
[348640725,1736696922568,-1941.02,9.022e-05,2]
[348640726,1736696922590,-169.38,9.233e-05,2]
[348640727,1736696922612,-163.643,9.5e-05,2]
[348640728,1736696922633,-500.0,9.616e-05,2]
[348640729,1736696922654,-1881.547,9.616e-05,2]
[348640730,1736696926955,-10000.0,9.616e-05,2]
[348640731,1736696931392,-5376.56855372,9.616e-05,2]
[348640732,1736696931414,-150.0,9.699e-05,2]
[348640733,1736696931435,-3244.2676,9.7e-05,2]
[348640734,1736696931459,-1229.16384628,9.7e-05,2]
[348640735,1736696935193,-3520.33355372,9.7e-05,2]
[348640736,1736696935215,-850.0672,9.7e-05,2]
[348640737,1736696935238,-150.99,9.7e-05,2]
[348640738,1736696935261,-5478.60924628,9.7e-05,2]
[348640743,1736697028247,864.44,8.219e-05,2]
[348640748,1736697032051,-930.91550409,9.493e-05,2]
[348640749,1736697032064,-386.75808904,9.493e-05,2]
[348640750,1736697032075,-1603.5,9.493e-05,2]
[348640751,1736697032160,-555.57041196,9.493e-05,2]
[348640752,1736697032268,-328.32,9.493e-05,2]
[348640753,1736697032280,-1197.17533504,9.493e-05,2]
[348640754,1736697032289,-5000.0,9.493e-05,2]
[348640755,1736697032299,-5000.0,9.493e-05,2]
[348640756,1736697032308,-5000.0,9.493e-05,2]
[348640757,1736697032317,-300.0,9.699e-05,2]
[348640758,1736697032327,-122.94195372,9.7e-05,2]
[348640759,1736697032336,-7012.4299,9.7e-05,2]
[348640760,1736697032346,-1000.0,9.7e-05,2]
[348640761,1736697032355,-235.7611,9.7e-05,2]
[348640762,1736697032364,-4002.6581,9.7e-05,2]
[348640763,1736697032373,-928.1963,9.7e-05,2]
[348640764,1736697032383,-1114.6308,9.762e-05,2]
[348640765,1736697032392,-1562.21,9.762e-05,2]
[348640766,1736697032401,-1071.17644211,9.762e-05,2]
[348640767,1736697032410,-485.86704554,9.763e-05,2]
[348640782,1736697032676,-81.55805446,9.763e-05,2]
[348640783,1736697032686,-467.98,9.763e-05,2]
[348640784,1736697032695,-414.61436255,9.773e-05,2]
[348640795,1736697038061,-1000.0,9.7e-05,2]
[348640796,1736697038071,-85.57316132,9.773e-05,2]
[348640797,1736697038080,-1025.85,9.799e-05,2]
[348640798,1736697038092,-1000.86,9.799e-05,2]
[348640799,1736697038102,-500.0,9.799e-05,2]
[348640800,1736697038111,-1731.84,9.799e-05,2]
[348640801,1736697038121,-502.61109831,9.799e-05,2]
[348640802,1736697038132,-500.0,9.799e-05,2]
[348640803,1736697038142,-500.0,9.799e-05,2]
[348640804,1736697038152,-500.0,9.799e-05,2]
[348640805,1736697038161,-500.0,9.799e-05,2]
[348640806,1736697038170,-500.0,9.799e-05,2]
[348640807,1736697038179,-592.62331865,9.799e-05,2]
[348640808,1736697038188,-500.0,9.799e-05,2]
[348640809,1736697038198,-500.0,9.799e-05,2]
[348640810,1736697038207,-500.0,9.799e-05,2]
[348640811,1736697038216,-500.0,9.799e-05,2]
[348640812,1736697038225,-310.98690242,9.799e-05,2]
[348640813,1736697038234,-159.37050633,9.799e-05,2]
[348640814,1736697038243,-500.0,9.799e-05,2]
[348640815,1736697038252,-159.14152261,9.799e-05,2]
[348640829,1736697038481,-500.0,9.799e-05,2]
[348640831,1736697038491,-500.0,9.799e-05,2]
[348640833,1736697038500,-500.0,9.799e-05,2]
[348640835,1736697038509,-429.37285989,9.799e-05,2]
[348640837,1736697038518,-500.0,9.799e-05,2]
[348640839,1736697038528,-500.0,9.799e-05,2]
[348640841,1736697038537,-501.41075334,9.799e-05,2]
[348640843,1736697038546,-500.0,9.799e-05,2]
[348640845,1736697038556,-500.0,9.799e-05,2]
[348640847,1736697038566,-500.0,9.799e-05,2]
[348640849,1736697038575,-500.0,9.799e-05,2]
[348640851,1736697038585,-500.0,9.799e-05,2]
[348640853,1736697038594,-442.13134783,9.799e-05,2]
[348640855,1736697038604,-618.29,9.799e-05,2]
[348640857,1736697038614,-500.0,9.799e-05,2]
[348640859,1736697038623,-500.0,9.799e-05,2]
[348640861,1736697038633,-500.0,9.799e-05,2]
[348640863,1736697038643,-1117.87,9.799e-05,2]
[348640865,1736697038652,-2072.93,9.799e-05,2]
[348640867,1736697038661,-500.0,9.799e-05,2]
[348640869,1736697038670,-500.0,9.799e-05,2]
[348640871,1736697038680,-500.0,9.799e-05,2]
[348640873,1736697038689,-500.0,9.799e-05,2]
[348640875,1736697038699,-500.0,9.799e-05,2]
[348640877,1736697038709,-967.28,9.799e-05,2]
[348640879,1736697038718,-1147.23,9.799e-05,2]
[348640881,1736697038727,-500.0,9.799e-05,2]
[348640883,1736697038737,-500.0,9.799e-05,2]
[348640885,1736697038747,-500.0,9.799e-05,2]
[348640887,1736697038757,-3016.7,9.799e-05,2]
[348640889,1736697038766,-500.0,9.799e-05,2]
[348640891,1736697038776,-500.0,9.799e-05,2]
[348640893,1736697038785,-500.0,9.799e-05,2]
[348640895,1736697038795,-1223.14,9.799e-05,2]
[348640897,1736697038805,-500.0,9.799e-05,2]
[348640899,1736697038815,-500.0,9.799e-05,2]
[348640901,1736697038824,-500.0,9.799e-05,2]
[348640903,1736697038834,-500.0,9.799e-05,2]
[348640905,1736697038844,-500.0,9.799e-05,2]
[348640907,1736697038855,-1988.91,9.799e-05,2]
[348640909,1736697038864,-2536.94,9.799e-05,2]
[348640911,1736697038874,-364.33760799,9.799e-05,2]
[348640913,1736697038884,-508.96,9.799e-05,2]
[348640915,1736697038894,-341.03599096,9.799e-05,2]
[348640917,1736697038903,-500.0,9.799e-05,2]
[348640919,1736697038912,-8763.14,9.799e-05,2]
[348640921,1736697038923,-504.57216226,9.799e-05,2]
[348640922,1736697038934,-500.0,9.799e-05,2]
[348640924,1736697038943,-2693.5,9.799e-05,2]
[348640926,1736697038953,-189.5656034,9.799e-05,2]
[348640928,1736697038962,-500.0,9.799e-05,2]
[348640931,1736697038975,-500.0,9.799e-05,2]
[348640933,1736697038985,-500.0,9.799e-05,2]
[348640934,1736697038994,-500.0,9.799e-05,2]
[348640937,1736697039004,-509.59231236,9.799e-05,2]
[348640938,1736697039014,-500.0,9.799e-05,2]
[348640941,1736697039023,-500.0,9.799e-05,2]
[348640943,1736697039032,-500.0,9.799e-05,2]
[348640945,1736697039041,-948.79,9.799e-05,2]
[348640946,1736697039051,-500.0,9.799e-05,2]
[348640948,1736697039060,-250.53422674,9.799e-05,2]
[348640950,1736697039069,-500.0,9.799e-05,2]
[348640952,1736697039079,-500.0,9.799e-05,2]
[348640954,1736697039088,-500.0,9.799e-05,2]
[348640956,1736697039098,-500.0,9.799e-05,2]
[348640958,1736697039107,-500.0,9.799e-05,2]
[348640960,1736697039116,-500.0,9.799e-05,2]
[348640962,1736697039125,-500.0,9.799e-05,2]
[348640964,1736697039134,-1322.63,9.799e-05,2]
[348640966,1736697039143,-500.0,9.799e-05,2]
[348640968,1736697039153,-500.0,9.799e-05,2]
[348640970,1736697039162,-500.0,9.799e-05,2]
[348640972,1736697039171,-500.0,9.799e-05,2]
[348640974,1736697039181,-505.41,9.799e-05,2]
[348640976,1736697039190,-500.0,9.799e-05,2]
[348640978,1736697039200,-500.0,9.799e-05,2]
[348640980,1736697039209,-2001.07,9.799e-05,2]
[348640982,1736697039218,-500.0,9.799e-05,2]
[348640984,1736697039227,-500.0,9.799e-05,2]
[348640986,1736697039236,-501.24690409,9.799e-05,2]
[348640988,1736697039245,-500.0,9.799e-05,2]
[348640990,1736697039256,-2517.71,9.799e-05,2]
[348640992,1736697039265,-500.0,9.799e-05,2]
[348640994,1736697039274,-500.0,9.799e-05,2]
[348640996,1736697039284,-500.0,9.799e-05,2]
[348640998,1736697039294,-500.0,9.799e-05,2]
[348641000,1736697039304,-5111.598548,9.799e-05,2]
[348641002,1736697039314,-500.0,9.799e-05,2]
[348641004,1736697039323,-500.0,9.799e-05,2]
[348641006,1736697039332,-500.0,9.799e-05,2]
[348641008,1736697039341,-1313.54,9.799e-05,2]
[348641010,1736697039351,-500.0,9.799e-05,2]
[348641012,1736697039360,-2409.15,9.799e-05,2]
[348641014,1736697039369,-500.0,9.799e-05,2]
[348641016,1736697039379,-500.0,9.799e-05,2]
[348641018,1736697039388,-500.0,9.799e-05,2]
[348641020,1736697039398,-500.0,9.799e-05,2]
[348641022,1736697039407,-2545.11,9.799e-05,2]
[348641024,1736697039416,-500.0,9.799e-05,2]
[348641026,1736697039425,-720.83,9.799e-05,2]
[348641028,1736697039435,-500.0,9.799e-05,2]
[348641030,1736697039445,-1463.12,9.799e-05,2]
[348641032,1736697039455,-633.45,9.799e-05,2]
[348641034,1736697039464,-5480.99969,9.799e-05,2]
[348641036,1736697039474,-3650.22,9.799e-05,2]
[348641038,1736697039483,-503.73088612,9.799e-05,2]
[348641040,1736697039494,-500.0,9.799e-05,2]
[348641042,1736697039504,-159.593112,9.799e-05,2]
[348641045,1736697039514,-500.0,9.799e-05,2]
[348641046,1736697039524,-500.0,9.799e-05,2]
[348641048,1736697039533,-2221.48,9.799e-05,2]
[348641050,1736697039543,-501.5453573,9.799e-05,2]
[348641052,1736697039552,-500.0,9.799e-05,2]
[348641054,1736697039561,-157.295643,9.799e-05,2]
[348641057,1736697039571,-905.13,9.799e-05,2]
[348641059,1736697039580,-500.0,9.799e-05,2]
[348641061,1736697039590,-500.0,9.799e-05,2]
[348641063,1736697039599,-500.0,9.799e-05,2]
[348641064,1736697039609,-500.0,9.799e-05,2]
[348641067,1736697039618,-500.0,9.799e-05,2]
[348641068,1736697039627,-500.0,9.799e-05,2]
[348641070,1736697039636,-500.0,9.799e-05,2]
[348641072,1736697039645,-1406.9,9.799e-05,2]
[348641074,1736697039655,-191.68839425,9.799e-05,2]
[348641076,1736697039664,-500.0,9.799e-05,2]
[348641078,1736697039673,-4088.45,9.799e-05,2]
[348641080,1736697039683,-500.0,9.799e-05,2]
[348641082,1736697039692,-2387.93,9.799e-05,2]
[348641084,1736697039702,-500.0,9.799e-05,2]
[348641086,1736697039711,-500.0,9.799e-05,2]
[348641088,1736697039720,-500.0,9.799e-05,2]
[348641090,1736697039729,-3256.32,9.799e-05,2]
[348641092,1736697039740,-500.0,9.799e-05,2]
[348641094,1736697039749,-500.0,9.799e-05,2]
[348641096,1736697039759,-486.32897422,9.799e-05,2]
[348641098,1736697039768,-500.0,9.799e-05,2]
[348641100,1736697039777,-672.97,9.799e-05,2]
[348641101,1736697039787,-500.0,9.799e-05,2]
[348641102,1736697039797,-500.0,9.799e-05,2]
[348641103,1736697039808,-500.0,9.799e-05,2]
[348641104,1736697039818,-785.13,9.799e-05,2]
[348641105,1736697039827,-567.47,9.799e-05,2]
[348641106,1736697039837,-500.0,9.799e-05,2]
[348641108,1736697039847,-270.62880808,9.799e-05,2]
[348641109,1736697039861,-500.0,9.799e-05,2]
[348641110,1736697039870,-500.0,9.799e-05,2]
[348641111,1736697039880,-500.0,9.799e-05,2]
[348641112,1736697039890,-500.0,9.799e-05,2]
[348641113,1736697039899,-500.0,9.799e-05,2]
[348641114,1736697039908,-500.0,9.799e-05,2]
[348641115,1736697039918,-500.0,9.799e-05,2]
[348641116,1736697039929,-1201.01,9.799e-05,2]
[348641117,1736697039938,-500.0,9.799e-05,2]
[348641118,1736697039947,-500.0,9.799e-05,2]
[348641119,1736697039957,-500.0,9.799e-05,2]
[348641120,1736697039966,-500.0,9.799e-05,2]
[348641121,1736697039976,-1852.27,9.799e-05,2]
[348641122,1736697039985,-500.0,9.799e-05,2]
[348641123,1736697039995,-266.23399173,9.799e-05,2]
[348641124,1736697040004,-500.0,9.799e-05,2]
[348641125,1736697040014,-500.0,9.799e-05,2]
[348641126,1736697040023,-500.0,9.799e-05,2]
[348641127,1736697040032,-500.0,9.799e-05,2]
[348641128,1736697040042,-500.6679053,9.799e-05,2]
[348641129,1736697040051,-500.0,9.799e-05,2]
[348641130,1736697040064,-501.10658168,9.799e-05,2]
[348641131,1736697040074,-785.24,9.799e-05,2]
[348641132,1736697040083,-501.93483655,9.799e-05,2]
[348641133,1736697040092,-500.0,9.799e-05,2]
[348641134,1736697040101,-500.0,9.799e-05,2]
[348641135,1736697040110,-500.0,9.799e-05,2]
[348641136,1736697040120,-500.0,9.799e-05,2]
[348641137,1736697040129,-500.0,9.799e-05,2]
[348641138,1736697040142,-500.0,9.799e-05,2]
[348641139,1736697040151,-500.0,9.799e-05,2]
[348641140,1736697040160,-1285.04,9.799e-05,2]
[348641141,1736697040169,-500.0,9.799e-05,2]
[348641142,1736697040178,-603.94,9.799e-05,2]
[348641143,1736697040188,-22452.15067065,9.8e-05,2]
[348641144,1736697040197,-625148.45848563,9.8e-05,2]
[348641145,1736697040207,-1071.17644209,9.81e-05,2]
[348641146,1736697040216,-1071.17644209,9.857e-05,2]
[348641147,1736697040225,-1002.94765454,9.861e-05,3]
[348641148,1736697040234,-506.59931369,9.862e-05,2]
[348641149,1736697040243,-500.0,9.862e-05,2]
[348641150,1736697040252,-260.19932949,9.862e-05,2]
[348641151,1736697040261,-500.0,9.862e-05,2]
[348641152,1736697040271,-500.0,9.862e-05,2]
[348641153,1736697040280,-500.0,9.862e-05,2]
[348641154,1736697040289,-287.47370311,9.862e-05,2]
[348641155,1736697040298,-500.0,9.862e-05,2]
[348641156,1736697040309,-537.76163464,9.862e-05,2]
[348641157,1736697040319,-287.76703,9.862e-05,2]
[348641158,1736697040328,-500.0,9.862e-05,2]
[348641159,1736697040337,-500.81245417,9.862e-05,2]
[348641160,1736697040346,-500.0,9.862e-05,2]
[348641161,1736697040355,-500.0,9.862e-05,2]
[348641162,1736697040365,-500.0,9.862e-05,2]
[348641163,1736697040374,-500.0,9.862e-05,2]
[348641164,1736697040383,-500.0,9.862e-05,2]
[348641165,1736697040393,-507.92713779,9.862e-05,2]
[348641166,1736697040403,-502.20081016,9.862e-05,2]
[348641167,1736697040412,-500.0,9.862e-05,2]
[348641168,1736697040421,-500.0,9.862e-05,2]
[348641169,1736697040431,-500.0,9.862e-05,2]
[348641170,1736697040440,-500.0,9.862e-05,2]
[348641171,1736697040449,-501.37987764,9.862e-05,2]
[348641172,1736697040458,-500.0,9.862e-05,2]
[348641173,1736697040467,-500.0,9.862e-05,2]
[348641174,1736697040476,-500.0,9.862e-05,2]
[348641175,1736697040486,-500.0,9.862e-05,2]
[348641176,1736697040495,-501.42788874,9.862e-05,2]
[348641177,1736697040504,-500.0,9.862e-05,2]
[348641178,1736697040513,-500.0,9.862e-05,2]
[348641179,1736697040522,-500.0,9.862e-05,2]
[348641181,1736697040531,-500.0,9.862e-05,2]
[348641183,1736697040541,-500.0,9.862e-05,2]
[348641185,1736697040549,-419.65175733,9.862e-05,2]
[348641187,1736697040561,-500.0,9.862e-05,2]
[348641189,1736697040570,-500.0,9.862e-05,2]
[348641191,1736697040579,-607.7,9.862e-05,2]
[348641193,1736697040589,-500.0,9.862e-05,2]
[348641195,1736697040598,-500.0,9.862e-05,2]
[348641196,1736697040607,-501.33627234,9.862e-05,2]
[348641199,1736697040617,-500.0,9.862e-05,2]
[348641201,1736697040626,-500.0,9.862e-05,2]
[348641203,1736697040635,-500.0,9.862e-05,2]
[348641204,1736697040644,-500.0,9.862e-05,2]
[348641206,1736697040653,-507.30507255,9.862e-05,2]
[348641209,1736697040663,-502.30205745,9.862e-05,2]
[348641210,1736697040672,-500.0,9.862e-05,2]
[348641213,1736697040682,-500.0,9.862e-05,2]
[348641215,1736697040691,-500.0,9.862e-05,2]
[348641217,1736697040701,-500.0,9.862e-05,2]
[348641218,1736697040710,-500.0,9.862e-05,2]
[348641221,1736697040719,-500.0,9.862e-05,2]
[348641223,1736697040728,-500.0,9.862e-05,2]
[348641224,1736697040738,-500.0,9.862e-05,2]
[348641227,1736697040747,-500.0,9.862e-05,2]
[348641229,1736697040756,-500.0,9.862e-05,2]
[348641231,1736697040766,-502.79720333,9.862e-05,2]
[348641232,1736697040776,-500.0,9.862e-05,2]
[348641234,1736697040785,-500.0,9.862e-05,2]
[348641236,1736697040794,-500.0,9.862e-05,2]
[348641239,1736697040803,-500.0,9.862e-05,2]
[348641240,1736697040812,-500.0,9.862e-05,2]
[348641242,1736697040821,-500.0,9.862e-05,2]
[348641244,1736697040831,-500.0,9.862e-05,2]
[348641247,1736697040842,-500.0,9.862e-05,2]
[348641249,1736697040852,-500.5197249,9.862e-05,2]
[348641251,1736697040863,-500.0,9.862e-05,2]
[348641253,1736697040872,-500.0,9.862e-05,2]
[348641255,1736697040882,-500.0,9.862e-05,2]
[348641257,1736697040891,-500.0,9.862e-05,2]
[348641259,1736697040900,-500.0,9.862e-05,2]
[348641261,1736697040909,-501.11596315,9.862e-05,2]
[348641263,1736697040918,-500.0,9.862e-05,2]
[348641265,1736697040927,-500.0,9.862e-05,2]
[348641267,1736697040937,-500.0,9.862e-05,2]
[348641269,1736697040946,-500.0,9.862e-05,2]
[348641271,1736697040955,-500.0,9.862e-05,2]
[348641273,1736697040965,-500.0,9.862e-05,2]
[348641275,1736697040975,-500.0,9.862e-05,2]
[348641277,1736697040985,-500.0,9.862e-05,2]
[348641279,1736697040994,-507.39144171,9.862e-05,2]
[348641281,1736697041003,-500.0,9.862e-05,2]
[348641283,1736697041013,-500.0,9.862e-05,2]
[348641285,1736697041022,-897.41,9.862e-05,2]
[348641287,1736697041031,-500.0,9.862e-05,2]
[348641289,1736697041042,-500.0,9.862e-05,2]
[348641291,1736697041052,-636.57434861,9.862e-05,2]
[348641293,1736697041062,-500.0,9.862e-05,2]
[348641295,1736697041071,-500.0,9.862e-05,2]
[348641297,1736697041081,-500.0,9.862e-05,2]
[348641299,1736697041090,-500.0,9.862e-05,2]
[348641301,1736697041100,-500.0,9.862e-05,2]
[348641303,1736697041109,-500.0,9.862e-05,2]
[348641305,1736697041118,-500.0,9.862e-05,2]
[348641307,1736697041128,-500.0,9.862e-05,2]
[348641309,1736697041137,-500.0,9.862e-05,2]
[348641311,1736697041147,-651.1,9.862e-05,2]
[348641313,1736697041155,-500.0,9.862e-05,2]
[348641315,1736697041165,-500.0,9.862e-05,2]
[348641317,1736697041174,-500.0,9.862e-05,2]
[348641319,1736697041184,-506.27399574,9.862e-05,2]
[348641321,1736697041193,-500.0,9.862e-05,2]
[348641323,1736697041202,-500.0,9.862e-05,2]
[348641325,1736697041212,-500.0,9.862e-05,2]
[348641327,1736697041223,-500.0,9.862e-05,2]
[348641329,1736697041232,-500.0,9.862e-05,2]
[348641331,1736697041242,-500.0,9.862e-05,2]
[348641333,1736697041252,-500.0,9.862e-05,2]
[348641335,1736697041261,-500.0,9.862e-05,2]
[348641337,1736697041271,-500.0,9.862e-05,2]
[348641339,1736697041280,-500.0,9.862e-05,2]
[348641341,1736697041289,-573.91,9.862e-05,2]
[348641343,1736697041299,-500.0,9.862e-05,2]
[348641345,1736697041310,-500.0,9.862e-05,2]
[348641347,1736697041319,-500.0,9.862e-05,2]
[348641349,1736697041328,-500.0,9.862e-05,2]
[348641351,1736697041338,-500.0,9.862e-05,2]
[348641353,1736697041347,-500.0,9.862e-05,2]
[348641355,1736697041356,-500.0,9.862e-05,2]
[348641357,1736697041366,-500.0,9.862e-05,2]
[348641359,1736697041375,-500.0,9.862e-05,2]
[348641361,1736697041385,-500.0,9.862e-05,2]
[348641363,1736697041395,-500.0,9.862e-05,2]
[348641365,1736697041404,-500.0,9.862e-05,2]
[348641367,1736697041414,-500.0,9.862e-05,2]
[348641369,1736697041423,-503.33293654,9.862e-05,2]
[348641371,1736697041432,-502.17153589,9.862e-05,2]
[348641373,1736697041442,-500.0,9.862e-05,2]
[348641375,1736697041451,-500.0,9.862e-05,2]
[348641377,1736697041460,-500.0,9.862e-05,2]
[348641379,1736697041469,-500.0,9.862e-05,2]
[348641380,1736697041479,-500.0,9.862e-05,2]
[348641381,1736697041488,-502.65826831,9.862e-05,2]
[348641382,1736697041497,-500.0,9.862e-05,2]
[348641383,1736697041506,-500.0,9.862e-05,2]
[348641384,1736697041515,-500.0,9.862e-05,2]
[348641385,1736697041524,-500.0,9.862e-05,2]
[348641386,1736697041533,-508.12876591,9.862e-05,2]
[348641387,1736697041543,-500.0,9.862e-05,2]
[348641388,1736697041551,-500.0,9.862e-05,2]
[348641389,1736697041563,-500.0,9.862e-05,2]
[348641390,1736697041572,-500.0,9.862e-05,2]
[348641392,1736697041581,-500.0,9.862e-05,2]
[348641394,1736697041591,-500.0,9.862e-05,2]
[348641396,1736697041600,-500.0,9.862e-05,2]
[348641398,1736697041609,-500.36818709,9.862e-05,2]
[348641400,1736697041618,-500.0,9.862e-05,2]
[348641402,1736697041627,-502.93144659,9.862e-05,2]
[348641404,1736697041636,-503.32887218,9.862e-05,2]
[348641406,1736697041646,-500.0,9.862e-05,2]
[348641408,1736697041655,-500.0,9.862e-05,2]
[348641410,1736697041665,-500.0,9.862e-05,2]
[348641412,1736697041674,-588.58690907,9.862e-05,2]
[348641414,1736697041683,-500.0,9.862e-05,2]
[348641416,1736697041693,-500.0,9.862e-05,2]
[348641418,1736697041702,-500.0,9.862e-05,2]
[348641420,1736697041711,-500.0,9.862e-05,2]
[348641422,1736697041720,-504.42546372,9.862e-05,2]
[348641424,1736697041730,-500.0,9.862e-05,2]
[348641426,1736697041739,-501.73126271,9.862e-05,2]
[348641428,1736697041749,-708.77,9.862e-05,2]
[348641430,1736697041758,-500.0,9.862e-05,2]
[348641432,1736697041767,-622.73,9.862e-05,2]
[348641434,1736697041777,-500.0,9.862e-05,2]
[348641436,1736697041786,-500.0,9.862e-05,2]
[348641438,1736697041795,-500.62304385,9.862e-05,2]
[348641440,1736697041805,-677.81,9.862e-05,2]
[348641442,1736697041815,-500.0,9.862e-05,2]
[348641444,1736697041824,-500.0,9.862e-05,2]
[348641446,1736697041834,-500.0,9.862e-05,2]
[348641448,1736697041843,-600.78,9.862e-05,2]
[348641449,1736697041852,-500.0,9.862e-05,2]
[348641451,1736697041865,-500.0,9.862e-05,2]
[348641453,1736697041874,-500.0,9.862e-05,2]
[348641456,1736697041884,-500.0,9.862e-05,2]
[348641458,1736697041893,-500.0,9.862e-05,2]
[348641460,1736697041904,-500.0,9.862e-05,2]
[348641462,1736697041914,-500.0,9.862e-05,2]
[348641464,1736697041923,-501.48334771,9.862e-05,2]
[348641466,1736697041932,-500.0,9.862e-05,2]
[348641468,1736697041943,-500.0,9.862e-05,2]
[348641470,1736697041952,-500.0,9.862e-05,2]
[348641472,1736697041961,-500.0,9.862e-05,2]
[348641473,1736697041972,-500.0,9.862e-05,2]
[348641476,1736697041984,-500.0,9.862e-05,2]
[348641478,1736697041993,-500.0,9.862e-05,2]
[348641480,1736697042002,-500.0,9.862e-05,2]
[348641482,1736697042012,-500.0,9.862e-05,2]
[348641483,1736697042021,-500.0,9.862e-05,2]
[348641485,1736697042030,-500.0,9.862e-05,2]
[348641487,1736697042040,-508.11,9.862e-05,2]
[348641506,1736697042191,-500.0,9.862e-05,2]
[348641509,1736697042223,-500.0,9.862e-05,2]
[348641511,1736697042232,-500.0,9.862e-05,2]
[348641513,1736697042242,-500.0,9.862e-05,2]
[348641515,1736697042251,-500.0,9.862e-05,2]
[348641517,1736697042260,-500.0,9.862e-05,2]
[348641519,1736697042269,-500.0,9.862e-05,2]
[348641521,1736697042279,-500.0,9.862e-05,2]
[348641523,1736697042289,-500.0,9.862e-05,2]
[348641525,1736697042298,-500.0,9.862e-05,2]
[348641527,1736697042307,-500.0,9.862e-05,2]
[348641529,1736697042317,-500.0,9.862e-05,2]
[348641531,1736697042326,-500.0,9.862e-05,2]
[348641533,1736697042335,-500.67578421,9.862e-05,2]
[348641535,1736697042344,-500.0,9.862e-05,2]
[348641537,1736697042354,-501.41511313,9.862e-05,2]
[348641539,1736697042363,-500.0,9.862e-05,2]
[348641541,1736697042372,-500.0,9.862e-05,2]
[348641543,1736697042381,-500.0,9.862e-05,2]
[348641545,1736697042391,-500.0,9.862e-05,2]
[348641547,1736697042400,-605.63,9.862e-05,2]
[348641549,1736697042409,-500.0,9.862e-05,2]
[348641551,1736697042419,-500.0,9.862e-05,2]
[348641553,1736697042428,-500.0,9.862e-05,2]
[348641555,1736697042437,-500.0,9.862e-05,2]
[348641557,1736697042447,-611.43,9.862e-05,2]
[348641559,1736697042456,-500.0,9.862e-05,2]
[348641561,1736697042466,-500.880498,9.862e-05,2]
[348641563,1736697042475,-500.0,9.862e-05,2]
[348641565,1736697042485,-573.28,9.862e-05,2]
[348641567,1736697042494,-500.0,9.862e-05,2]
[348641569,1736697042504,-500.0,9.862e-05,2]
[348641571,1736697042513,-500.0,9.862e-05,2]
[348641573,1736697042522,-500.0,9.862e-05,2]
[348641575,1736697042532,-500.0,9.862e-05,2]
[348641577,1736697042542,-500.0,9.862e-05,2]
[348641579,1736697042551,-807.75,9.862e-05,2]
[348641581,1736697042562,-500.0,9.862e-05,2]
[348641583,1736697042572,-500.0,9.862e-05,2]
[348641585,1736697042581,-500.0,9.862e-05,2]
[348641587,1736697042591,-500.0,9.862e-05,2]
[348641589,1736697042599,-500.0,9.862e-05,2]
[348641591,1736697042608,-500.0,9.862e-05,2]
[348641593,1736697042618,-500.0,9.862e-05,2]
[348641595,1736697042628,-500.41754991,9.862e-05,2]
[348641597,1736697042637,-500.0,9.862e-05,2]
[348641599,1736697042647,-500.0,9.862e-05,2]
[348641601,1736697042658,-500.0,9.862e-05,2]
[348641603,1736697042668,-500.92485034,9.862e-05,2]
[348641606,1736697042678,-500.0,9.862e-05,2]